Cogmind - Beta 15 @@@ ROGUE MODE // 2025.07.10 @ 21:21:04 Player: YA-B01 Result: Destroyed by G-73 Enforcer with Heavy Laser Performance ------------- Evolutions (9) 4500 Regions Visited (20) 4000 Robots Destroyed (179) 895 Value Destroyed (6349) 6349 Prototype IDs (53) 1060 Alien Tech Used (4) 800 Bonus (10176) 10176 TOTAL SCORE: 27780 Bonus ------- High Alert Combat Kills 109 Follower Combat Kills 1618 Network Hubs Disabled 200 Registered with UFD 300 Met Optimus in HQ 500 Met R17 at Cetus 500 Used Core Reset Matrix 3000 Met R17 at Research 2000 Met Sigix 2000 Friendly Fire -51 Cogmind --------- Core Integrity 0/1600 Matter 214/300 Energy 60/100 System Corruption 22% Temperature Cool (18) Movement Core (100) Ox1 Location -1/Command Parts ------- > --- POWER (2) -------- (None) > --- PROPULSION (7) --- (None) > --- UTILITY (13) ----- Spectral Analyzer Hacking Suite Improved Hacking Suite Advanced Hacking Suite > --- WEAPON (3) ------- Vibroblade > --- INVENTORY (5) ---- Gamma Bomb Array Sigix Containment Pod Peak State ------------ > --- POWER ------------ Micro Nuclear Core Micro Fission Core > --- PROPULSION ------- Diametric Drive Diametric Drive Diametric Drive Impulse Thruster Array Impulse Thruster Array > --- UTILITY ---------- Advanced Heat Sink Medium Storage Unit Structural Scanner Spectral Analyzer Long-range Sensor Array Advanced Signal Interpreter Centrium Medium Armor Plating Hacking Suite Advanced Hacking Suite Improved System Shield Improved System Shield > --- WEAPON ----------- Vibroblade Sigix Broadsword > --- INVENTORY -------- Impulse Thruster Array Subatomic Replicator Terrabomb Terrabomb Heavy Phase Cannon Gamma Bomb Array Fusion Bomb Launcher Advanced Datajack Improved Plasma Cutter [Rating: 167] Favorites ----------- Power Heavy Deuterium Engine Engine Heavy Deuterium Engine Power Core Micro Nuclear Core Reactor Light Quantum Reactor Propulsion Cooled VTOL Module Treads Armored Treads Leg Aluminum Leg Wheel Wheel Flight Unit Cooled VTOL Module Utility Hacking Suite Device ECM Suite Storage Medium Storage Unit Processor Improved Signal Interpreter Hackware Hacking Suite Protection Hardened Medium Armor Plating Weapon Improved EM Pulse Cannon Energy Gun Medium Laser Energy Cannon Improved EM Pulse Cannon Ballistic Gun Assault Rifle Launcher Grenade Launcher Special Weapon Plasma Cutter Impact Weapon Great Maul Slashing Weapon Katana Piercing Weapon Spear Special Melee Weapon Improved Datajack Build | -11 -10 -10 -10 -9 -8 -7 -7 -7 -7 -5 -5 -5 -5 -5 -4 -3 -2 -2 -1 -1 ------- Run | Yrd Mat Min Exi Min Mat Fac Sto Rec Scr Fac Ext Cet Arc Hub Fac Res Res Qua Acc Com Slots Evolved 18 | . . . . . 4 2 . . . 4 . . . . 2 2 2 . 2 . Power 1 | . . . . . . . . . . . . . . . 1 . . . . . Propulsion 5 | . . . . . 2 1 . . . 1 . . . . 1 . . . . . Utility 11 | . . . . . 1 1 . . . 3 . . . . . 2 2 . 2 . Weapon 1 | . . . . . 1 . . . . . . . . . . . . . . . Parts Attached 191 | 6 9 7 . 4 31 16 3 . 7 18 9 1 1 2 20 18 6 5 19 9 Power 27 | . 2 1 . . 3 . 2 . 1 2 2 . . . 4 . . . 7 3 Engine 9 | . 2 1 . . . . 2 . 1 1 . . . . . . . . 2 . Core 9 | . . . . . 3 . . . . 1 1 . . . 3 . . . 1 . Reactor 9 | . . . . . . . . . . . 1 . . . 1 . . . 4 3 Propulsion 57 | 2 4 3 . . 12 9 1 . . 3 . . . . 6 8 . 1 5 3 Treads 11 | 2 . . . . 9 . . . . . . . . . . . . . . . Leg 4 | . 3 1 . . . . . . . . . . . . . . . . . . Wheel 5 | . 1 2 . . 2 . . . . . . . . . . . . . . . Hover . | . . . . . . . . . . . . . . . . . . . . . Flight 37 | . . . . . 1 9 1 . . 3 . . . . 6 8 . 1 5 3 Utility 59 | 2 2 . . 2 5 5 . . 3 8 1 1 1 1 7 8 5 1 4 3 Device 25 | 1 1 . . . 2 2 . . 1 4 . . . 1 3 4 1 . 3 2 Storage 7 | 1 1 . . 1 2 . . . 1 . . . . . . 1 . . . . Processor 7 | . . . . . . 1 . . . 1 . . . . 3 2 . . . . Hackware 15 | . . . . . . 2 . . 1 2 1 . 1 . 1 1 3 1 1 1 Protection 5 | . . . . 1 1 . . . . 1 . 1 . . . . 1 . . . Artifact . | . . . . . . . . . . . . . . . . . . . . . Weapon 48 | 2 1 3 . 2 11 2 . . 3 5 6 . . 1 3 2 1 3 3 . Energy Gun 5 | . 1 1 . 1 2 . . . . . . . . . . . . . . . Energy Cannon 6 | . . . . . 4 . . . . . 1 . . 1 . . . . . . Ballistic Gun 3 | 2 . . . . 1 . . . . . . . . . . . . . . . Ballistic Cannon . | . . . . . . . . . . . . . . . . . . . . . Launcher 8 | . . 2 . 1 1 . . . . . 2 . . . 1 . . . 1 . Special Weapon 3 | . . . . . . . . . 1 . . . . . . . . 2 . . Impact Weapon 1 | . . . . . . . . . 1 . . . . . . . . . . . Slashing Weapon 19 | . . . . . 2 2 . . . 4 3 . . . 2 2 1 1 2 . Piercing Weapon 2 | . . . . . 1 . . . . 1 . . . . . . . . . . Special Melee Weapon 1 | . . . . . . . . . 1 . . . . . . . . . . . Unidentified Prototypes 17 | . . . . . 3 1 1 . . 2 1 1 . . . 4 1 2 1 . Parts Lost 66 | . 2 1 . 1 7 1 . . 2 3 2 1 . 5 7 4 2 . 11 17 Power 8 | . . . . . 1 . . . . . . . . 1 1 . . . 3 2 Propulsion 25 | . 2 1 . . 3 . . . . . . . . 4 2 3 . . 2 8 Utility 21 | . . . . . 1 1 . . 1 1 2 1 . . 2 1 1 . 4 6 Weapon 12 | . . . . 1 2 . . . 1 2 . . . . 2 . 1 . 2 1 Highest Loss Streak 13 | . 2 1 . 1 3 1 . . 2 1 1 1 . 4 4 4 2 . 5 13 To Critical Strikes 1 | . . . . . . . . . . . . . . . . . . . 1 . Average Backups 8 | 3 8 9 10 13 14 5 5 5 5 6 7 8 8 8 6 8 8 8 6 4 Power . | 1 1 . . . . . . . . . . . . . . . 1 . . . Propulsion 2 | . 1 1 2 3 3 2 2 3 2 1 . 1 1 . . 1 2 1 1 . Utility 2 | . 3 4 4 4 5 1 . . . 2 . . . . 1 1 . . . . Weapon 2 | . 1 3 3 3 4 1 1 1 1 1 4 5 5 4 4 3 3 2 1 1 Tool/Special . | . . . . . . . . . . . . . . . . . . . . . Unused Backups 25 | . 5 2 . 1 6 2 1 . 1 1 . . . 1 . . . 4 1 . Power 2 | . 1 . . . . . . . . . . . . . . . . 1 . . Propulsion 9 | . 2 2 . . 1 2 . . 1 . . . . . . . . 1 . . Utility 6 | . 1 . . 1 2 . 1 . . 1 . . . . . . . . . . Weapon 5 | . 1 . . . 2 . . . . . . . . 1 . . . 1 . . Tool/Special 3 | . . . . . 1 . . . . . . . . . . . . 1 1 . Average Slot Usage (%) 89 | . 95 95 100 100 97 89 92 92 91 84 90 90 94 82 70 87 86 86 75 38 Engine 5 | . 12 14 14 14 . . 5 7 7 4 3 . . . . . . . . . Core 3 | . . . . . 8 7 2 . . . . 5 5 3 5 9 8 8 4 1 Treads 5 | . 9 . . . 25 . . . . . . . . . . . . . . . Leg 1 | . 9 12 . . . . . . . . . . . . . . . . . . Wheel 5 | . 9 11 28 28 10 . . . . . . . . . . . . . . . Flight 16 | . . . . . . 37 38 38 38 30 29 29 29 23 21 23 21 21 16 6 Device 9 | . 11 14 14 3 8 6 7 7 5 8 4 . . 2 8 12 15 14 14 3 Storage 6 | . 14 14 14 14 9 . . . 1 5 5 5 5 5 3 3 4 4 4 1 Processor 4 | . . . . . . 6 7 7 7 5 5 5 5 5 7 9 8 8 8 5 Hackware 8 | . . . . . . 14 15 15 14 11 17 23 23 23 14 14 13 15 15 13 Protection 3 | . . . . 10 8 . . . . 4 4 4 5 2 . . 1 4 3 . Energy Gun 3 | . . 19 28 26 . . . . . . . . . . . . . . . . Energy Cannon 3 | . . . . . 20 . . . . . . . . . . . . . . . Ballistic Gun 3 | . 27 4 . . . . . . . . . . . . . . . . . . Slashing Weapon 7 | . . . . . 4 14 15 15 13 7 11 12 17 12 6 13 12 8 5 4 Peak Build Rating 167 | 6 8 8 8 11 39 51 55 55 58 78 83 83 85 85 103 137 148 167 167 114 Average Rating 56 | 4 7 7 8 9 32 42 52 55 56 67 74 79 84 68 72 121 139 164 141 68 On Entrance 61 | . 6 8 8 8 11 32 51 55 55 44 68 79 83 85 39 94 137 148 167 106 Naked Turns . | . . . . . . . . . . . . . . . . . . . . . Heaviest Build 110 | 9 21 22 21 38 110 15 19 19 27 30 34 32 32 32 36 41 46 48 65 27 Greatest Support 84 | 40 40 20 20 20 84 25 25 25 27 41 41 33 41 33 38 54 53 53 57 38 Greatest Overweight (x) 10 | . 2 2 1 1 10 . . . . 1 1 . . . 4 . . . 1 1 Average Overweight (x) . | . . 1 1 1 4 . . . . . . . . . . . . . . . Largest Inventory Capacity 25 | 8 10 10 10 15 25 25 5 5 8 8 8 8 8 8 8 10 10 10 10 10 Average Capacity 9 | 7 8 10 10 13 16 5 5 5 5 8 8 8 8 8 6 9 10 10 10 6 Most Carried 25 | 6 10 10 10 15 21 25 5 5 8 8 8 8 8 8 8 10 10 10 10 9 Average Carried 9 | 3 8 9 10 13 15 5 4 5 5 7 7 7 8 7 6 8 9 9 9 6 Final Capacity 25 | 8 10 10 10 15 25 5 5 5 8 8 8 8 8 8 5 10 10 10 10 5 Final Carried 21 | 6 10 10 10 15 21 5 5 5 8 8 8 8 8 8 5 10 9 10 8 3 Class Distribution -------------------- 35% | Mutant 29% | Hacker-Sprinter 11% | Hacker-Ninja 8% | Hacker-Scout 5% | Tank 3% | Commander-Sprinter Dominant Class ---------------- Mutant | -10/Materials Mutant | -10/Mines Mutant | -10/Exiles Mutant | -9/Mines Mutant | -8/Materials Hacker-Sprinter | -7/Factory Hacker-Sprinter | -7/Storage Hacker-Sprinter | -7/Recycling Hacker-Sprinter | -7/Scraptown Hacker-Sprinter | -5/Factory Commander-Sprinter | -5/Extension Hacker-Sprinter | -5/Cetus Hacker-Sprinter | -5/Archives Hacker-Sprinter | -5/Hub_04(d) Hacker-Ninja | -4/Factory Hacker-Scout | -3/Research Hacker-Ninja | -2/Research Hacker-Scout | -2/Quarantine Hacker-Ninja | -1/Access Hacker-Mutant | -1/Command Resources | -11 -10 -10 -10 -9 -8 -7 -7 -7 -7 -5 -5 -5 -5 -5 -4 -3 -2 -2 -1 -1 ----------- Run | Yrd Mat Min Exi Min Mat Fac Sto Rec Scr Fac Ext Cet Arc Hub Fac Res Res Qua Acc Com Matter Collected 3824 | 300 461 130 . 101 615 165 . 30 136 68 521 131 10 . 367 279 40 40 421 9 Remotely . | . . . . . . . . . . . . . . . . . . . . . Salvage Created 7783 | 133 663 115 . 465 1831 194 . 73 107 170 1285 679 34 208 671 251 111 53 740 . Parts 374 | 12 48 4 . 22 85 9 . 4 4 7 58 21 5 7 29 14 8 4 33 . Haulers Intercepted 11 | . 2 . . . 5 1 . . . 1 1 . . . . 1 . . . . Recyclers Shooed 3 | . . . . 3 . . . . . . . . . . . . . . . . Parts Field Recycled . | . . . . . . . . . . . . . . . . . . . . . Retrieved Matter . | . . . . . . . . . . . . . . . . . . . . . Parts Self-Destructed . | . . . . . . . . . . . . . . . . . . . . . Prevented . | . . . . . . . . . . . . . . . . . . . . . Kills | -11 -10 -10 -10 -9 -8 -7 -7 -7 -7 -5 -5 -5 -5 -5 -4 -3 -2 -2 -1 -1 ------- Run | Yrd Mat Min Exi Min Mat Fac Sto Rec Scr Fac Ext Cet Arc Hub Fac Res Res Qua Acc Com Combat Hostiles Destroyed 97 | . 17 4 . 7 26 3 . . 2 . 14 8 . . 5 . . . 11 . Melee 20 | . . . . . 3 3 . . 1 . 6 . . . 1 . . . 6 . Guns 21 | . 17 1 . 3 . . . . . . . . . . . . . . . . Cannons 9 | . . . . . 9 . . . . . . . . . . . . . . . AOE 38 | . . 3 . 4 12 . . . 1 . 7 2 . . 4 . . . 5 . Classes Destroyed 19 | 2 6 2 . . 3 . . . 2 . 1 . . . 2 . . . 1 . Worker 11 | . . 2 . 1 4 . . . . . 1 . . 1 2 . . . . . Builder 5 | . 1 . . . . . . . . . 2 . . 1 . 1 . . . . Tunneler 8 | 3 . 1 . 1 . . . . . . 2 . . . 1 . . . . . Hauler 11 | . 2 . . . 5 1 . . . 1 1 . . . . 1 . . . . Recycler 13 | 1 . . . 2 2 1 . 1 . . 2 . . 1 2 . . . 1 . Mechanic 1 | . . . . . . . . . . . . . . . 1 . . . . . Operator 13 | . 3 . . . 1 . . . . 2 1 . 1 . 1 1 2 1 . . Watcher 22 | . 1 . . . 5 . . . . 2 1 2 . . 3 3 1 1 3 . Swarmer 25 | . 9 . . . 3 3 . . . . 4 . . . . . . . 6 . Cutter 6 | . . . . . . . . . . . . . . . 2 . . . 4 . Grunt 36 | . 8 1 . 7 15 . . . . . 2 . . . 3 . . . . . Brawler 1 | . . . . . 1 . . . . . . . . . . . . . . . Sentry 9 | . . . . . 6 . . . . . 3 . . . . . . . . . Hunter 5 | . . . . . 1 . . . . . 4 . . . . . . . . . Programmer 1 | . . . . . . . . . . . . . . . . . . . 1 . Behemoth 1 | . . . . . . . . . . . 1 . . . . . . . . . Cetus Guard 8 | . . . . . . . . . . . . 8 . . . . . . . . Guru 1 | . . . . . . . . . 1 . . . . . . . . . . . Scrapper 1 | . . . . . . . . . 1 . . . . . . . . . . . Assembled 3 | . . 3 . . . . . . . . . . . . . . . . . . Thug 1 | . . . . . . . . . . . 1 . . . . . . . . . Best Kill Streak 8 | 4 3 3 . 4 6 4 . 1 1 1 8 5 1 3 4 1 1 1 6 . Combat Bots Only 6 | . 3 3 . 3 6 3 . . 1 . 5 4 . . 4 . . . 6 . Max Kills in Single Turn 4 | 1 1 2 . 3 3 1 . 1 1 1 3 2 1 2 3 1 1 1 4 . Gunslinging . | . . . . . . . . . . . . . . . . . . . . . Exploded 4 | . . 2 . 2 3 . . . 1 . 3 1 . . 3 . . . 4 . Melee 1 | . . . . . 1 1 . . 1 . 1 . . . 1 . . . 1 . Uniques/NPCs Destroyed . | . . . . . . . . . . . . . . . . . . . . . Combat | -11 -10 -10 -10 -9 -8 -7 -7 -7 -7 -5 -5 -5 -5 -5 -4 -3 -2 -2 -1 -1 -------- Run | Yrd Mat Min Exi Min Mat Fac Sto Rec Scr Fac Ext Cet Arc Hub Fac Res Res Qua Acc Com Hostile Shots Fired 883 | . 78 15 . 14 76 19 2 . 9 47 63 20 18 55 53 12 15 . 196 191 Missed 404 | . 21 8 . 6 26 6 1 . 3 25 36 10 11 28 28 6 5 . 92 92 Hits 479 | . 57 7 . 8 50 13 1 . 6 22 27 10 7 27 25 6 10 . 104 99 Melee 24 | . . . . . . . . . . . . . . . 1 . . . 23 . Projectile 455 | . 57 7 . 8 50 13 1 . 6 22 27 10 7 27 24 6 10 . 81 99 AOE 6 | . . . . . . . . . . . . . . . 1 . . . 5 . Critical Strikes 22 | . . . . . 2 . . . . . 2 1 . 2 1 . 1 . 12 1 Damage Taken 10365 | . 577 183 . 143 1005 197 20 . 110 447 607 260 179 586 709 422 177 . 2693 2050 Core 2564 | . 80 18 . 18 59 70 . . . 46 100 56 25 147 179 141 24 . 446 1155 Absorbed by Shields 45 | . . . . . . . . . . . . . . . . . . . 45 . Regen/Repaired (Parts) 405 | . 17 . . . 61 . . . . 20 105 . . . 57 . . . 145 . Core Remaining (%) 83 | 100 . . . 53 89 . . . 90 . . . . 62 84 89 . 98 . . Volleys Fired 255 | 10 97 17 . 27 52 . . . 2 . 20 11 . 2 2 11 . . 3 1 Largest 3 | 2 2 2 . 2 3 . . . 1 . 1 1 . 1 1 1 . . 1 1 Hottest 207 | 40 40 90 . 100 207 . . . 36 . 90 43 . 90 49 90 . . 80 80 Shots Fired 417 | 20 194 22 . 42 88 . . . 2 . 20 11 . 2 2 10 . . 3 1 Gun 270 | 20 194 15 . 37 4 . . . . . . . . . . . . . . . Cannon 92 | . . . . . 76 . . . . . 4 . . 2 . 10 . . . . Launcher 55 | . . 7 . 5 8 . . . 2 . 16 11 . . 2 . . . 3 1 Special . | . . . . . . . . . . . . . . . . . . . . . Kinetic 215 | 20 194 . . . 1 . . . . . . . . . . . . . . . Thermal 58 | . . 11 . 28 3 . . . . . 4 . . 2 . 10 . . . . Explosive 25 | . . 7 . 5 8 . . . 2 . 1 . . . 2 . . . . . Electromagnetic 119 | . . 4 . 9 76 . . . . . 15 11 . . . . . . 3 1 Robot Hit Streak 14 | 6 14 11 . 5 9 . . . . . 4 . . . 5 . . . . . Robot Miss Streak 5 | 1 5 1 . 3 3 . . . 2 . 1 . . . . . . . . . Penetration Max . | . . . . . . . . . . . . . . . . . . . . . Secondary Targets 1 | . 1 . . . . . . . . . . . . . . . . . . . Max Gunslinging Chain 1 | . 1 . . . . . . . . . . . . . . . . . . . Shots Hit Robots 398 | 14 118 14 . 25 69 10 . 1 2 8 65 . 1 . 25 12 5 2 25 2 Core Hits 268 | 5 45 14 . 19 51 3 . 1 3 3 36 16 . 8 23 5 3 1 31 1 Critical Kills 2 | . 2 . . . . . . . . . . . . . . . . . . . Critical Parts Destroyed 1 | . 1 . . . . . . . . . . . . . . . . . . . Critical Strikes 22 | . 3 . . 1 1 2 . . . 1 2 . . . 4 3 . . 4 1 Burn 1 | . . . . 1 . . . . . . . . . . . . . . . . Destroy 3 | . 3 . . . . . . . . . . . . . . . . . . . Corrupt 1 | . . . . . 1 . . . . . . . . . . . . . . . Sever 17 | . . . . . . 2 . . . 1 2 . . . 4 3 . . 4 1 Melee Attacks 578 | . . . . . 56 50 4 4 6 69 73 . 2 14 71 72 21 28 98 10 Impact . | . . . . . . . . . . . . . . . . . . . . . Slashing 536 | . . . . . 52 50 4 4 5 67 38 . 2 14 71 72 21 28 98 10 Piercing 6 | . . . . . 4 . . . . 2 . . . . . . . . . . Sneak Attacks 72 | . . . . . 6 2 . 1 2 1 40 . 1 . 9 5 1 1 3 . Combat Hostiles 2 | . . . . . . . . . 1 . 1 . . . . . . . . . Follow-up Attacks 16 | . . . . . . 2 . . . . 5 . . . . 4 . . 5 . Damage Inflicted 18100 | 159 1226 548 . 640 3334 544 . 107 143 578 2803 1327 152 622 2168 913 366 255 2071 144 Guns 1891 | 159 1204 165 . 303 60 . . . . . . . . . . . . . . . Cannons 1615 | . . . . . 1507 . . . . . 108 . . . . . . . . . Explosions 6327 | . . 373 . 337 995 . . . 79 . 1322 1327 . 622 741 . . . 487 44 Melee 8200 | . . . . . 755 544 . 107 64 578 1355 . 152 . 1427 913 366 255 1584 100 Ramming 67 | . 22 10 . . 17 . . . . . 18 . . . . . . . . . Kinetic 1363 | 159 1204 . . . . . . . . . . . . . . . . . . . Thermal 975 | . . 142 . 211 60 . . . . . 349 213 . . . . . . . . Explosive 2763 | . . 343 . 337 995 . . . 79 . 224 . . . 741 . . . . 44 Electromagnetic 4732 | . . 53 . 92 1507 . . . . . 857 1114 . 622 . . . . 487 . Impact . | . . . . . . . . . . . . . . . . . . . . . Slashing 8200 | . . . . . 755 544 . 107 64 578 1355 . 152 . 1427 913 366 255 1584 100 Piercing . | . . . . . . . . . . . . . . . . . . . . . Highest Corruption 22 | . . . . . 10 . . . . . . . . . . 12 . . 17 22 Average Corruption 11 | . . . . . 10 . . . . . . . . . . 12 . . 9 20 Corruption Purged . | . . . . . . . . . . . . . . . . . . . . . Corruption Blocked . | . . . . . . . . . . . . . . . . . . . . . Effects 76 | . . . . . 10 . . . . . . . . . . 33 . . 20 13 Message Errors 21 | . . . . . 4 . . . . . . . . . . 7 . . 9 1 Matter Fused 20 | . . . . . 3 . . . . . . . . . . 9 . . 4 4 Heat Flow Errors 5 | . . . . . . . . . . . . . . . . 4 . . 1 . Energy Discharges 4 | . . . . . . . . . . . . . . . . 2 . . . 2 Parts Fused 1 | . . . . . . . . . . . . . . . . 1 . . . . Data Loss (minor) 9 | . . . . . 2 . . . . . . . . . . 3 . . 3 1 Data Loss (major) 5 | . . . . . 1 . . . . . . . . . . 2 . . 2 . Misdirections 10 | . . . . . . . . . . . . . . . . 4 . . 1 5 Weapon Failures 1 | . . . . . . . . . . . . . . . . 1 . . . . Overload Shots . | . . . . . . . . . . . . . . . . . . . . . Overflow Damage 1483 | . . 9 . . 148 132 . . . 165 111 44 92 116 117 160 81 127 159 22 Projectiles 47 | . . . . . 47 . . . . . . . . . . . . . . . Explosions 220 | . . 9 . . 14 . . . . . 37 44 . 116 . . . . . . Melee 1216 | . . . . . 87 132 . . . 165 74 . 92 . 117 160 81 127 159 22 Knockbacks 1 | . 1 . . . . . . . . . . . . . . . . . . . Impact 1 | . 1 . . . . . . . . . . . . . . . . . . . Kinetic . | . . . . . . . . . . . . . . . . . . . . . Secondary . | . . . . . . . . . . . . . . . . . . . . . Self-Inflicted Damage 307 | . . 90 . 36 31 . . . . . 9 . . 104 . . . . 11 26 Shots 10 | . . 4 . 1 1 . . . . . . . . 1 . . . . 1 2 Rammed 8 | . 5 . . . 2 . . . . . 1 . . . . . . . . . Targets Rammed 15 | . 8 4 . . 2 . . . . . 1 . . . . . . . . . Kicked 7 | . 3 4 . . . . . . . . . . . . . . . . . . Crushed . | . . . . . . . . . . . . . . . . . . . . . Highest Temperature 333 | . 12 118 . 324 299 . . 3 6 59 156 3 226 10 333 224 . . 205 . Average Temperature 73 | . 6 36 . 118 79 . . 3 4 9 65 3 100 7 106 60 . . 108 . Received Heat Transfer 1139 | . 186 53 . 60 288 . . . 24 27 120 . 36 36 21 18 27 . 45 198 Effects 3 | . . . . . . . . . . . . . . . 3 . . . . . Shutdowns 1 | . . . . . . . . . . . . . . . 1 . . . . . Interference 1 | . . . . . . . . . . . . . . . 1 . . . . . Short Circuit 1 | . . . . . . . . . . . . . . . 1 . . . . . Siege Activations . | . . . . . . . . . . . . . . . . . . . . . Martial Activations . | . . . . . . . . . . . . . . . . . . . . . Shielding Activations . | . . . . . . . . . . . . . . . . . . . . . Robots Disrupted . | . . . . . . . . . . . . . . . . . . . . . Combat Hostiles . | . . . . . . . . . . . . . . . . . . . . . Robots Corrupted 12 | . . . . . 3 . . . . . 1 7 . 1 . . . . . . Combat Hostiles 9 | . . . . . 2 . . . . . 1 6 . . . . . . . . Parts Fried 33 | . . . . . 13 . . . . . 2 9 . 4 . . . . 5 . Impact Corruptions . | . . . . . . . . . . . . . . . . . . . . . Robots Melted . | . . . . . . . . . . . . . . . . . . . . . Combat Hostiles . | . . . . . . . . . . . . . . . . . . . . . Parts Melted 7 | . . . . . 1 . . . . . 6 . . . . . . . . . Heat Transferred 1838 | . . 383 . 683 111 . . . . . 511 150 . . . . . . . . Parts Sabotaged . | . . . . . . . . . . . . . . . . . . . . . Parts Stolen . | . . . . . . . . . . . . . . . . . . . . . Parts Stripped . | . . . . . . . . . . . . . . . . . . . . . Power Chain Reactions 11 | . . 1 . . . . . . . . 7 2 . . . . . . 1 . Alert | -11 -10 -10 -10 -9 -8 -7 -7 -7 -7 -5 -5 -5 -5 -5 -4 -3 -2 -2 -1 -1 ------- Run | Yrd Mat Min Exi Min Mat Fac Sto Rec Scr Fac Ext Cet Arc Hub Fac Res Res Qua Acc Com Maximum Alert Level 3 | . 1 . . . 2 1 . . . 2 2 2 1 2 1 . . . 2 3 Low Security (%) 69 | 100 96 100 . 100 14 37 100 100 . 93 67 . 43 93 49 100 100 100 66 . Level 1 23 | . 3 . . . 67 62 . . . 4 32 83 56 . 50 . . . 9 15 Level 2 6 | . . . . . 17 . . . . 1 . 16 . 6 . . . . 24 63 Level 3 . | . . . . . . . . . . . . . . . . . . . . 21 Level 4 . | . . . . . . . . . . . . . . . . . . . . . Level 5 . | . . . . . . . . . . . . . . . . . . . . . High Security . | . . . . . . . . . . . . . . . . . . . . . Max Security . | . . . . . . . . . . . . . . . . . . . . . Peak Influence 775 | 15 218 35 . 198 491 266 150 149 . 420 412 417 220 434 376 117 75 103 593 775 Initial 360 | . . 19 . . 71 200 110 50 . . 32 208 150 77 214 39 49 10 54 360 Average 151 | 2 106 2 . 31 299 214 128 90 . 117 156 338 195 101 198 59 48 58 178 567 Influence Increases 9569 | 20 612 75 . 371 1116 254 50 140 . 944 1478 259 80 512 723 523 80 231 1078 1023 Destroy 0b10 Robot/C 2780 | . 340 20 . 220 520 60 . . . . 760 160 . . 140 . . . 420 140 Destroy 0b10 Robot/NC 440 | 20 35 15 . 20 85 10 . 5 . 25 65 10 5 15 50 30 15 10 25 . Destroy Leader 502 | . 96 10 . 40 140 12 . . . 6 72 . . . 6 8 2 2 68 40 Allied During Kill 478 | . . . . 8 . . . . . . 371 . . . 24 . . . 32 43 Successful Hack 682 | . 19 . . . 65 25 20 13 . 142 19 . . 7 57 124 21 54 101 15 Select Force Hacks 490 | . 60 . . . 60 30 . 120 . . . . . . 80 140 . . . . Disable Machine 465 | . . . . 45 90 . 30 . . 30 15 . . 60 45 30 . 75 45 . Anti-Garrison Action 50 | . . . . . . . . . . . . . . . . . . . . 50 Destroy Structure 1312 | . 2 30 . 38 81 27 . 2 . 96 56 44 . 220 156 86 27 45 222 180 Partial Spotted 510 | . . . . . 15 45 . . . 45 15 . 75 15 105 15 15 15 120 30 Lose Combat Pursuer 1860 | . 60 . . . 60 45 . . . 600 105 45 . 195 60 90 . 30 45 525 Influence Decreases 8826 | 20 562 125 . 187 859 451 164 240 30 876 1174 254 237 293 1085 511 150 159 606 843 Entered New Map 1751 | . . 31 . . 113 241 134 80 30 . 36 164 227 143 225 38 40 9 37 203 Time Decay 4438 | 20 542 94 . 177 656 190 30 160 . 429 408 80 10 90 380 433 90 150 409 90 Lost Part 630 | . 20 . . 10 70 10 . . . 30 20 10 . 50 70 40 20 . 110 170 Lost Ally 990 | . . . . . 20 10 . . . . 410 . . 10 110 . . . 50 380 Purge Threat 1017 | . . . . . . . . . . 417 300 . . . 300 . . . . . Squads Dispatched 100 | . 6 . . 2 4 5 1 . . 19 4 . . 4 16 17 3 2 11 6 Investigation 59 | . 4 . . . 2 2 1 . . 11 2 . . 3 10 15 2 . 5 2 Extermination 16 | . . . . . . 2 . . . 4 . . . 1 3 2 . 1 3 . Reinforcement 22 | . 2 . . 1 2 . . . . 4 2 . . . 3 . 1 1 2 4 Assault 2 | . . . . 1 . 1 . . . . . . . . . . . . . . Garrison 1 | . . . . . . . . . . . . . . . . . . . 1 . Intercept . | . . . . . . . . . . . . . . . . . . . . . Searches Triggered . | . . . . . . . . . . . . . . . . . . . . . Construction Impeded 2 | . . . . 1 . . . . . . 1 . . . . . . . . . Haulers Reinforced 1 | . . . . . . . . . . 1 . . . . . . . . . . Active Scanning Responses . | . . . . . . . . . . . . . . . . . . . . . Cargo Convoy Interrupts . | . . . . . . . . . . . . . . . . . . . . . Stealth | -11 -10 -10 -10 -9 -8 -7 -7 -7 -7 -5 -5 -5 -5 -5 -4 -3 -2 -2 -1 -1 --------- Run | Yrd Mat Min Exi Min Mat Fac Sto Rec Scr Fac Ext Cet Arc Hub Fac Res Res Qua Acc Com Distress Signals 35 | . 2 . . . 4 1 1 . . . 3 3 . . 3 7 1 1 8 1 Communications Jammed . | . . . . . . . . . . . . . . . . . . . . . Distress Signals . | . . . . . . . . . . . . . . . . . . . . . Times Spotted 488 | . 40 12 . 10 38 9 2 . 8 41 49 11 4 29 50 17 19 3 92 54 Peak Tracking Total 24 | . 4 3 . 5 7 5 5 . 4 10 8 5 4 20 9 5 7 4 12 24 Tactical Retreats 83 | . 4 3 . . 4 1 . . . 13 4 1 . 5 13 5 5 1 17 7 Traps | -11 -10 -10 -10 -9 -8 -7 -7 -7 -7 -5 -5 -5 -5 -5 -4 -3 -2 -2 -1 -1 ------- Run | Yrd Mat Min Exi Min Mat Fac Sto Rec Scr Fac Ext Cet Arc Hub Fac Res Res Qua Acc Com Traps Triggered 9 | . 1 . . . . . . . . 2 . . . . 4 . . . 2 . Indirectly . | . . . . . . . . . . . . . . . . . . . . . Trap Hack Attempts 13 | . . . . . . . . . . . 6 . . . 7 . . . . . Triggered . | . . . . . . . . . . . . . . . . . . . . . Disarmed . | . . . . . . . . . . . . . . . . . . . . . Reprogrammed 3 | . . . . . . . . . . . 1 . . . 2 . . . . . Reused . | . . . . . . . . . . . . . . . . . . . . . Traps Extracted . | . . . . . . . . . . . . . . . . . . . . . Installed . | . . . . . . . . . . . . . . . . . . . . . Triggered . | . . . . . . . . . . . . . . . . . . . . . Objects Rigged 4 | . . . . . . . . . . 2 . . . . . 2 . . . . Machines | -11 -10 -10 -10 -9 -8 -7 -7 -7 -7 -5 -5 -5 -5 -5 -4 -3 -2 -2 -1 -1 ---------- Run | Yrd Mat Min Exi Min Mat Fac Sto Rec Scr Fac Ext Cet Arc Hub Fac Res Res Qua Acc Com Machines Disabled 35 | . . . . 3 6 . 2 . 2 2 1 . . 4 3 2 . 5 3 2 Max in Single Turn 3 | . . . . 1 1 . 1 . 1 1 1 . . 3 1 1 . 1 1 2 Garrison Access 10 | . . . . . 1 1 . . . 1 . . . 1 . 3 1 . 2 . Phase Generator 1 | . . . . . . . . . . . . . . . . . . . . 1 Network Hub 1 | . . . . . . . . . . . . . . 1 . . . . . . Energy Cycler 2 | . . . . . . . . . . . 2 . . . . . . . . . Machines Repaired . | . . . . . . . . . . . . . . . . . . . . . Machines Dismantled 2 | . . . . . . . . . 1 . . . . . . . . 1 . . Machines Sabotaged . | . . . . . . . . . . . . . . . . . . . . . Overloaded Fab Kills 10 | . . . . . . . . . . . . . . . 2 8 . . . . Hacking | -11 -10 -10 -10 -9 -8 -7 -7 -7 -7 -5 -5 -5 -5 -5 -4 -3 -2 -2 -1 -1 --------- Run | Yrd Mat Min Exi Min Mat Fac Sto Rec Scr Fac Ext Cet Arc Hub Fac Res Res Qua Acc Com Machines Accessed 180 | . 9 . 1 . 13 7 4 9 10 29 9 3 . 8 20 25 7 9 14 3 Terminals 105 | . 6 . . . 9 5 3 5 . 17 8 3 . 7 10 11 3 8 8 2 Fabricators 7 | . . . . . . . . . . 2 . . . . 1 2 1 . 1 . Repair Stations 7 | . 1 . . . 1 . . . . 2 1 . . . 1 . . . 1 . Recycling Units 31 | . 2 . . . 1 1 1 4 . 5 . . . . 7 5 2 . 2 1 Scanalyzers 8 | . . . . . 1 . . . . 1 . . . . 1 4 . 1 . . Garrison Access 11 | . . . . . 1 1 . . . 2 . . . 1 . 3 1 . 2 . Total Hacks 683 | . 24 . 5 . 36 30 9 24 43 108 28 5 . 36 98 103 30 48 47 9 Successful 433 | . 13 . 5 . 30 23 6 17 43 61 17 3 . 30 64 47 22 28 21 3 Failed 250 | . 11 . . . 6 7 3 7 . 47 11 2 . 6 34 56 8 20 26 6 Catastrophic 36 | . 1 . . . 1 . . 1 . 13 . . . . 4 4 1 5 5 1 Database Lockouts . | . . . . . . . . . . . . . . . . . . . . . Manual 340 | . 14 . . . 20 19 7 17 . 58 7 . . 23 53 42 22 28 22 8 Terminals 461 | . 16 . . . 27 24 6 14 . 75 26 5 . 30 77 58 20 42 34 7 Fabricators 26 | . . . . . . . . . . 9 . . . . 1 8 3 . 5 . Repair Stations 19 | . 2 . . . 2 . . . . 4 2 . . . 5 . . . 4 . Recycling Units 73 | . 6 . . . 2 3 3 10 . 11 . . . . 12 16 6 . 2 2 Scanalyzers 30 | . . . . . 4 . . . . 4 . . . . 3 13 . 6 . . Garrison Access 26 | . . . . . 1 3 . . . 5 . . . 6 . 8 1 . 2 . Terminal Hacks 185 | . 1 . 5 . 6 8 2 4 43 24 10 3 . 14 22 13 6 15 8 1 Record 50 | . . . 5 . . . . . 38 . . 2 . . . . . 4 1 . Robot Analysis 8 | . . . . . . . . . 4 1 . . . . . 3 . . . . Prototype ID Bank 12 | . 1 . . . 2 1 1 2 . . . . . . 1 2 . 1 1 . Open Door 8 | . . . . . . . 1 . . 1 2 1 . . . . . . 3 . Open DSF 2 | . . . . . . . . . . 1 . . . . . 1 . . . . Level Access Points 3 | . . . . . . . . . . . . . . 1 . . 1 1 . . Branch Access Points 10 | . . . . . 1 1 . . . 1 1 . . 1 1 1 1 1 1 . Emergency Access Points 10 | . . . . . . 1 . . . 2 . . . 1 5 1 . . . . Machine Index 2 | . . . . . . . . . . . . . . 1 . . . . 1 . Terminal Index 6 | . . . . . . 1 . . . 2 . . . 1 1 . 1 . . . Fabricator Index 1 | . . . . . . 1 . . . . . . . . . . . . . . Recycling Unit Index 4 | . . . . . . . . . . 1 . . . 1 . 1 1 . . . Garrison Index 2 | . . . . . . . . . . . . . . . 1 1 . . . . Alert Level 14 | . . . . . 2 1 . 1 . 4 . . . 2 2 . . 2 . . Unreport Threat 7 | . . . . . . . . . . 3 2 . . . 2 . . . . . Locate Traps 11 | . . . . . 1 . . . . . . . . 1 3 1 2 1 1 1 Dispatch Records 1 | . . . . . . . . . . 1 . . . . . . . . . . Surveillance Status 1 | . . . . . . . . . . . . . . 1 . . . . . . Patrol Status 2 | . . . . . . . . . . . . . . 1 . . . 1 . . Extermination Status 1 | . . . . . . . . . . . 1 . . . . . . . . . Assault Status 1 | . . . . . . . . . . . 1 . . . . . . . . . Recall Investigation 1 | . . . . . . . . . . . . . . . . . . 1 . . Recall Extermination 8 | . . . . . . . . . . 4 . . . . 3 . . 1 . . Recall Assault 1 | . . . . . . . . . . . 1 . . . . . . . . . Hauler Manifests 2 | . . . . . . . . . . . . . . 1 1 . . . . . Registered Components 4 | . . . . . . 1 . 1 . . 1 . . 1 . . . . . . Registered Prototypes 3 | . . . . . . 1 . . . . . . . . 1 . . 1 . . Zone Layout 9 | . . . . . . . . . . 3 1 . . 1 1 2 . 1 . . Proto ID Catalog 1 | . . . . . . . . . 1 . . . . . . . . . . . Fabricator Hacks 4 | . . . . . . . . . . 1 . . . . . 2 . . 1 . Network Status 2 | . . . . . . . . . . 1 . . . . . . . . 1 . Load Schematic 1 | . . . . . . . . . . . . . . . . 1 . . . . Build 1 | . . . . . . . . . . . . . . . . 1 . . . . Repair Station Hacks 13 | . 2 . . . 2 . . . . 3 2 . . . 2 . . . 2 . Scan Component 7 | . 1 . . . 1 . . . . 2 1 . . . 1 . . . 1 . Repair 6 | . 1 . . . 1 . . . . 1 1 . . . 1 . . . 1 . Recycling Unit Hacks 14 | . . . . . . 1 1 2 . 1 . . . . 4 3 2 . . . Retrieve Matter 1 | . . . . . . . . . . . . . . . 1 . . . . . Retrieve Components 13 | . . . . . . 1 1 2 . 1 . . . . 3 3 2 . . . Scanalyzer 19 | . . . . . 3 . . . . 3 . . . . 2 7 . 4 . . Insert Component 9 | . . . . . 1 . . . . 1 . . . . 1 4 . 2 . . Analyze 10 | . . . . . 2 . . . . 2 . . . . 1 3 . 2 . . Garrison Access Hacks 10 | . . . . . 1 1 . . . 1 . . . 1 . 3 1 . 2 . Seal Access 10 | . . . . . 1 1 . . . 1 . . . 1 . 3 1 . 2 . Unauthorized Hacks 188 | . 10 . . . 18 13 3 11 . 28 5 . . 15 34 19 13 9 8 2 Terminals 134 | . 8 . . . 15 11 1 7 . 20 5 . . 10 24 9 9 9 5 1 Track 23 | . . . . . 4 2 . . . 4 1 . . 2 5 1 2 1 1 . Assimilate 13 | . . . . . 1 3 . . . 2 . . . 1 4 . . 1 1 . Botnet 41 | . 2 . . . 3 2 1 2 . 6 3 . . 3 7 3 3 3 2 1 Detonate 2 | . . . . . . . . . . 1 . . . . . 1 . . . . Operators 8 | . . . . . 1 1 . . . 1 . . . 1 1 1 1 1 . . Skim 43 | . 5 . . . 6 3 . 5 . 5 1 . . 1 7 3 3 3 1 . Sabotage 2 | . . . . . . . . . . . . . . 2 . . . . . . Search 2 | . 1 . . . . . . . . 1 . . . . . . . . . . Fabricators 9 | . . . . . . . . . . 2 . . . . 1 3 2 . 1 . Report 4 | . . . . . . . . . . 1 . . . . . 1 1 . 1 . Liberate 3 | . . . . . . . . . . 1 . . . . . 1 1 . . . Overload 2 | . . . . . . . . . . . . . . . 1 1 . . . . Repair Stations 1 | . . . . . . . . . . . . . . . 1 . . . . . Mechanics 1 | . . . . . . . . . . . . . . . 1 . . . . . Recycling Units 33 | . 2 . . . 2 2 2 4 . 5 . . . . 7 4 2 . 2 1 Recyclers 3 | . . . . . 1 1 1 . . . . . . . . . . . . . Mask 1 | . . . . . . . 1 . . . . . . . . . . . . . Tunnel 8 | . 2 . . . 1 1 . 4 . . . . . . . . . . . . Fedlink 17 | . . . . . . . . . . 5 . . . . 6 4 2 . . . Scrapoids 1 | . . . . . . . . . . . . . . . 1 . . . . . Scraphulk 3 | . . . . . . . . . . . . . . . . . . . 2 1 Scanalyzers 5 | . . . . . 1 . . . . . . . . . 1 3 . . . . Extract 5 | . . . . . 1 . . . . . . . . . 1 3 . . . . Garrison Access 6 | . . . . . . . . . . 1 . . . 5 . . . . . . Broadcast 2 | . . . . . . . . . . 1 . . . 1 . . . . . . Decoy 1 | . . . . . . . . . . . . . . 1 . . . . . . Redirect 1 | . . . . . . . . . . . . . . 1 . . . . . . Intercept 1 | . . . . . . . . . . . . . . 1 . . . . . . Watchers 1 | . . . . . . . . . . . . . . 1 . . . . . . Data Cores Recovered 4 | . . . . . . . . . . 1 . . . . 1 . 2 . . . Used . | . . . . . . . . . . . . . . . . . . . . . Hacking Detections 127 | . 9 . . . 9 6 4 9 . 26 7 1 . 4 11 19 4 7 8 3 Full Trace Events 18 | . . . . . . 1 1 . . 4 . . . 1 1 6 . . 3 1 Feedback Events . | . . . . . . . . . . . . . . . . . . . . . Feedback Blocked 1 | . . . . . . . . . . . . . . . . . . . 1 . Robot Schematics Acquired . | . . . . . . . . . . . . . . . . . . . . . Robots Built . | . . . . . . . . . . . . . . . . . . . . . Authchips . | . . . . . . . . . . . . . . . . . . . . . Time . | . . . . . . . . . . . . . . . . . . . . . Total Robot Build Rating . | . . . . . . . . . . . . . . . . . . . . . Part Schematics Acquired 22 | . . . . . 2 . . . . 1 . . . . 4 13 . 2 . . Parts Built 1 | . . . . . . . . . . . . . . . . 1 . . . . Authchips . | . . . . . . . . . . . . . . . . . . . . . Time 67 | . . . . . . . . . . . . . . . . 67 . . . . Total Part Build Rating 4 | . . . . . . . . . . . . . . . . 4 . . . . Parts Repaired 6 | . 1 . . . 1 . . . . 1 1 . . . 1 . . . 1 . Time 262 | . 26 . . . 44 . . . . 70 56 . . . 35 . . . 31 . Parts Recycled . | . . . . . . . . . . . . . . . . . . . . . Recycled Matter . | . . . . . . . . . . . . . . . . . . . . . Retrieved Matter . | . . . . . . . . . . . . . . . . . . . . . Retrieved Components 24 | . . . . . . 2 3 6 . 3 . . . . 3 1 6 . . . Parts Scanalyzed 7 | . . . . . 1 . . . . 1 . . . . 1 3 . 1 . . Part Schematics Acquired 8 | . . . . . 1 . . . . 1 . . . . 1 3 . 2 . . Parts Damaged 1 | . . . . . . . . . . . . . . . . 1 . . . . Bothacking | -11 -10 -10 -10 -9 -8 -7 -7 -7 -7 -5 -5 -5 -5 -5 -4 -3 -2 -2 -1 -1 ------------ Run | Yrd Mat Min Exi Min Mat Fac Sto Rec Scr Fac Ext Cet Arc Hub Fac Res Res Qua Acc Com Used RIF Installer . | . . . . . . . . . . . . . . . . . . . . . Robots Hacked 2 | . . . . . . . . . 1 . 1 . . . . . . . . . Non-combat 1 | . . . . . . . . . . . 1 . . . . . . . . . Combat 1 | . . . . . . . . . 1 . . . . . . . . . . . Robot Hacks Applied 2 | . . . . . . . . . 1 . 1 . . . . . . . . . parse_system 1 | . . . . . . . . . 1 . . . . . . . . . . . no_distress 1 | . . . . . . . . . . . 1 . . . . . . . . . Relay Couplers Released . | . . . . . . . . . . . . . . . . . . . . . Fabnet Peak Effective % . | . . . . . . . . . . . . . . . . . . . . . Robots Rewired 21 | . . . . . . . . . . . 21 . . . . . . . . . Allies Hacked . | . . . . . . . . . . . . . . . . . . . . . Hacks Repelled . | . . . . . . . . . . . . . . . . . . . . . Allies | -11 -10 -10 -10 -9 -8 -7 -7 -7 -7 -5 -5 -5 -5 -5 -4 -3 -2 -2 -1 -1 -------- Run | Yrd Mat Min Exi Min Mat Fac Sto Rec Scr Fac Ext Cet Arc Hub Fac Res Res Qua Acc Com Total Allies 56 | . . . . 1 . 1 . . . 1 24 . . 1 6 . . . 3 19 Largest Group 11 | . . . . 1 1 1 . . . 1 11 . . 1 5 . . . 1 6 Highest-Rated Group 313 | . . . . 31 31 10 . . . 10 313 . . 10 238 . . . 139 139 Highest-Rated Ally 139 | . . . . 31 31 10 . . . 10 39 . . 10 50 . . . 139 139 Total Orders 13 | . . . . . . . . . 1 . 12 . . . . . . . . . STAY 5 | . . . . . . . . . . . 5 . . . . . . . . . FOLLOW 7 | . . . . . . . . . . . 7 . . . . . . . . . RETURN 1 | . . . . . . . . . 1 . . . . . . . . . . . Ally Attacks 356 | . . . . 16 . . . . . . 206 . . . 25 . . . 46 63 Total Damage 8826 | . . . . 214 . . . . . . 3819 . . . 848 . . . 2297 1648 Kills 53 | . . . . 4 . . . . . . 29 . . . 2 . . . 11 7 Allies Corrupted 1 | . . . . . . . . . . . . . . . 1 . . . . . Allies Melted 3 | . . . . . . . . . 3 . . . . . . . . . . . Intel | -11 -10 -10 -10 -9 -8 -7 -7 -7 -7 -5 -5 -5 -5 -5 -4 -3 -2 -2 -1 -1 ------- Run | Yrd Mat Min Exi Min Mat Fac Sto Rec Scr Fac Ext Cet Arc Hub Fac Res Res Qua Acc Com Active Infowar (turns) 11281 | 41 1361 1076 186 58 1754 346 64 339 511 1046 874 . . 49 738 1160 193 310 980 195 Optics 3517 | . . . . . . . . . . . . . . . 679 1160 193 310 980 195 Sensors 5837 | . . . . . . 335 64 339 511 1046 585 . . . 545 1160 193 304 755 . IFF 39 | . . . . . . . . . . . . . . . 39 . . . . . Structural 2317 | . . . . . . . . . . . . . . . . 940 193 304 869 11 Seismic 2165 | 41 357 . . . 1754 13 . . . . . . . . . . . . . . Cloaking 322 | . . . . . . . . . . 33 289 . . . . . . . . . ECM 4054 | . 1004 1076 186 58 . . . . . . . . . 49 500 147 139 100 764 31 Robot Analysis Total 8 | . . . . . . . . . 4 1 . . . . . 3 . . . . Derelict Logs Recovered 2 | . . . . 2 . . . . . . . . . . . . . . . . Drone Launches 1 | . . . . . . . . . 1 . . . . . . . . . . . Drone Recoveries 1 | . . . . . . . . . 1 . . . . . . . . . . . Exploration | -11 -10 -10 -10 -9 -8 -7 -7 -7 -7 -5 -5 -5 -5 -5 -4 -3 -2 -2 -1 -1 ------------- Run | Yrd Mat Min Exi Min Mat Fac Sto Rec Scr Fac Ext Cet Arc Hub Fac Res Res Qua Acc Com Turns Passed 15182 | 157 1670 1076 186 813 2457 389 64 339 1836 1061 1009 172 39 183 893 1160 193 310 980 195 Spaces Moved 23069 | 73 798 695 196 699 1235 903 208 514 3321 2295 1719 532 153 453 2046 3419 575 769 2085 381 Core 6 | 2 . . . . . . . . . . . . . . 4 . . . . . Treads 325 | 71 223 . . . 31 . . . . . . . . . . . . . . . Legs 310 | . 43 267 . . . . . . . . . . . . . . . . . . Wheels 3059 | . 532 428 196 699 1204 . . . . . . . . . . . . . . . Hover . | . . . . . . . . . . . . . . . . . . . . . Flight 19369 | . . . . . . 903 208 514 3321 2295 1719 532 153 453 2042 3419 575 769 2085 381 Fastest Speed 5 | 50 95 95 95 95 95 23 23 23 20 5 11 24 11 24 18 22 24 24 24 30 Average Speed 41 | 156 119 145 95 95 146 25 23 23 22 23 24 24 22 25 28 25 24 24 29 37 Slowest Speed 260 | 160 260 260 95 95 240 28 23 23 23 91 88 24 24 32 250 35 24 24 112 120 Overloaded Moves 86 | . . . . . . . . . 3 5 25 . 23 . 30 . . . . . Propulsion Burnouts . | . . . . . . . . . . . . . . . . . . . . . Robots Hopped 101 | . . . . . . 9 6 8 2 14 10 . 3 14 17 5 1 1 9 2 Potential Cave-ins 9 | . . . . . . . . . . . . . . . . 6 . . 3 . Cave-ins Triggered 3 | . . . . . 1 . . . . . . . . . . 1 . . 1 . Exploration Rate (%) 64 | 6 95 96 62 99 89 28 30 85 96 68 87 92 84 54 48 88 20 67 41 25 Regions Visited 20 Branch Regions 12 Pre-discovered Areas 23 | . 2 1 1 1 4 1 . 6 4 3 . . . . . . . . . . Known Exits Taken 16 | . 1 . . . 1 1 1 1 1 1 1 1 1 1 1 1 1 1 1 . Unknown Exits Taken 4 | 1 . 1 1 1 . . . . . . . . . . . . . . . . Scrap Searched 10 | . . 1 . 1 . . . . 8 . . . . . . . . . . . Spaces Dug 396 | . . 16 . . 52 27 . 2 . 51 16 . . 10 36 42 9 15 42 78 Terrain Destroyed 723 | . . 34 . 45 91 27 . 2 10 51 24 30 . 158 53 50 9 15 46 78 Melee 272 | . . . . . 34 27 . 2 . 51 . . . 10 36 40 9 15 42 6 Projectile 11 | . . . . . . . . . . . 1 . . . . 10 . . . . AOE 440 | . . 34 . 45 57 . . . 10 . 23 30 . 148 17 . . . 4 72 Terrain Rammed . | . . . . . . . . . . . . . . . . . . . . . Walls Destroyed . | . . . . . . . . . . . . . . . . . . . . . Machines Disabled . | . . . . . . . . . . . . . . . . . . . . . Actions | -11 -10 -10 -10 -9 -8 -7 -7 -7 -7 -5 -5 -5 -5 -5 -4 -3 -2 -2 -1 -1 --------- Run | Yrd Mat Min Exi Min Mat Fac Sto Rec Scr Fac Ext Cet Arc Hub Fac Res Res Qua Acc Com Total 27256 | 95 1337 736 195 806 1718 992 212 719 4355 2703 2219 560 151 484 2221 3606 600 847 2285 415 Wait 2856 | 1 403 . . 64 259 5 . 211 990 306 374 8 . 19 44 79 5 23 60 5 Move 22860 | 72 797 694 195 698 1234 885 196 498 3317 2268 1701 531 146 427 2012 3408 572 766 2066 377 Hop 88 | . . . . . . 8 5 7 1 12 7 . 3 11 16 5 1 1 9 2 Pick Up 107 | 6 13 6 . 8 27 7 1 . 4 6 5 . . 2 3 10 . 5 4 . Fast Attach 141 | 6 2 2 . . 18 6 2 . 7 12 8 3 . . 20 13 4 6 23 9 Attach 55 | . 3 1 . 1 4 10 . . 2 4 8 1 . 2 5 1 1 . 7 5 Detach 39 | . . . . . 1 7 . . 2 5 5 1 . 2 5 3 1 1 4 2 Swap 97 | . 4 5 . 5 30 1 1 . 2 8 10 3 1 5 6 7 1 3 5 . Drop 159 | . 10 7 . 3 35 21 4 . 9 10 8 2 . 3 5 11 . 12 15 4 Fire 255 | 10 97 17 . 27 52 . . . 2 . 20 11 . 2 2 11 . . 3 1 Melee 513 | . . . . . 56 42 3 3 6 63 66 . 1 11 69 58 15 22 88 10 Ram 1 | . . . . . . . . . . . 1 . . . . . . . . . Kick 7 | . 3 4 . . . . . . . . . . . . . . . . . . Crush 7 | . 5 . . . 2 . . . . . . . . . . . . . . . Escape Stasis 37 | . . . . . . . . . . 9 . . . . 27 . . . 1 . Rewire . | . . . . . . . . . . . . . . . . . . . . . Trap 13 | . . . . . . . . . . . 6 . . . 7 . . . . . Miscellaneous 21 | . . . . . . . . . 13 . . . . . . . . 8 . . Route ------- -11/Scrapyard -10/Materials (discovered 6 exits: *Mat x3 / *Min x2 / [*Sub]) -10/Mines (discovered 4 exits: *Mat x2 / *Exi / [*Sub]) -10/Exiles -9/Mines (discovered 2 exits: *Mat x2) -8/Materials (discovered 3 exits: *Fac x3) -7/Factory (discovered 6 exits: *Fac x2 / *Sto x2 / Low x2) -7/Storage -7/Recycling (discovered 2 exits: *Fac / *Scr) -7/Scraptown (discovered 2 exits: *Fac x2) -5/Factory (discovered 8 exits: *Fac x4 / *Upp x2 / *Ext x2) -5/Extension (discovered 3 exits: *Fac x2 / *Cet) -5/Cetus (discovered 3 exits: *Fac x2 / *Arc) -5/Archives (discovered 2 exits: *Fac / *Hub) -5/Hub_04(d) (discovered 4 exits: *Fac x4) -4/Factory (discovered 7 exits: *Res x4 / *Upp x2 / Arm) -3/Research (discovered 5 exits: *Res x3 / *Tes x2) -2/Research (discovered 5 exits: Acc x3 / *Qua x2) -2/Quarantine -1/Access -1/Command History --------- Turn | Location | Event 30 | -11/Scrapyard | Discovered new exit (range 16) 158 | -11/Scrapyard | Entered Materials 268 | -10/Materials | Discovered new exit (range 6) 311 | -10/Materials | Build established: Mutant 541 | -10/Materials | Repaired Seismic Detector 640 | -10/Materials | Discovered new exit (range 6) 878 | -10/Materials | Discovered new exit (range 13) 919 | -10/Materials | Discovered new exit (range 10) 1129 | -10/Materials | Discovered new exit (range 16) 1365 | -10/Materials | Learned 2 Mines zone layouts 1413 | -10/Materials | Identified exit to Mines 1451 | -10/Materials | Learned Storage stockpile data 1477 | -10/Materials | Identified exit to Materials 1491 | -10/Materials | Learned location of 1 exit from Recycling 1494 | -10/Materials | Learned location of 2 exits from Materials 1498 | -10/Materials | Learned 4 Materials zone layouts 1510 | -10/Materials | Loaded intel: 8 terminal locations 1530 | -10/Materials | Learned Storage stockpile data 1828 | -10/Materials | Entered Mines 1853 | -10/Mines | Met a Derelict bent on vengeance 1900 | -10/Mines | Excavation squad dispatched 1900 | -10/Mines | A large section of the Mines collapsed 2082 | -10/Mines | Discovered new exit (range 6) 2528 | -10/Mines | Deemed a non-threat by the Exiles lab entrance 2528 | -10/Mines | Discovered new exit (range 5) 2753 | -10/Mines | Discovered exit to Materials (range 11) 2763 | -10/Mines | Received a Rocket Launcher from a helpful Derelict 2789 | -10/Mines | Learned location of Storage (-7) 2904 | -10/Mines | Entered Exiles 2927 | -10/Exiles | Met 8R-AWN 2943 | -10/Exiles | Met EX-HEX 2986 | -10/Exiles | Met EX-DEC 3003 | -10/Exiles | Learned location of Zion (-7) 3020 | -10/Exiles | Met EX-BIN 3076 | -10/Exiles | Discovered new exit (range 15) 3090 | -10/Exiles | Entered Mines 3230 | -9/Mines | Discovered new exit (range 5) 3257 | -9/Mines | Found DCF Scrap (13 items) 3392 | -9/Mines | Learned 2 Materials zone layouts 3452 | -9/Mines | Discovered new exit (range 15) 3701 | -9/Mines | Met a Derelict testing a Signal Generator 3704 | -9/Mines | Found Signal Generator 3903 | -9/Mines | Entered Materials 3903 | -8/Materials | Accompanied by 1 ally 3903 | -8/Materials | Evolved 4 slots: Propulsion x2, Utility x1, Weapon x1 3904 | -8/Materials | Identified exit to Factory 4409 | -8/Materials | Build established: Tank 4815 | -8/Materials | Repaired Imp. EM Pulse Cannon 5208 | -8/Materials | Build established: Mutant 5333 | -8/Materials | Discovered exit to Factory (range 3) 6043 | -8/Materials | Learned Storage security intel 6055 | -8/Materials | Crushed by falling debris 6055 | -8/Materials | System corruption reached 10% 6086 | -8/Materials | Lost 3 parts (1n2w) 6087 | -8/Materials | Learned Storage emergency access door positions 6123 | -8/Materials | Learned location of 1 exit from Lower Caves 6163 | -8/Materials | Learned Factory trap positions 6218 | -8/Materials | Learned 2 Storage zone layouts 6260 | -8/Materials | Learned location of Extension (-5) 6360 | -8/Materials | Entered Factory 6360 | -7/Factory | Evolved 2 slots: Propulsion x1, Utility x1 6361 | -7/Factory | Identified exit to Storage 6362 | -7/Factory | Loaded intel: 118 trap records 6390 | -7/Factory | Discovered new exit (range 7) 6392 | -7/Factory | Identified exit to Factory 6433 | -7/Factory | Identified exit to Lower Caves 6626 | -7/Factory | Discovered exit to Factory (range 12) 6688 | -7/Factory | Build established: Hacker-Sprinter 6749 | -7/Factory | Entered Storage 6813 | -7/Storage | Used back door to open Recycling access 6813 | -7/Storage | Discovered new exit (range 4) 6813 | -7/Storage | Identified exit to Recycling 6813 | -7/Storage | Entered Recycling 6814 | -7/Recycling | Identified exit to Factory 6969 | -7/Recycling | Learned location of 2 exits from Lower Caves 7053 | -7/Recycling | Learned Factory terminal intel 7077 | -7/Recycling | Learned location of Lower Caves (-7) 7092 | -7/Recycling | Learned 8 Factory zone layouts 7096 | -7/Recycling | Learned location of 2 exits from Proximity Caves 7097 | -7/Recycling | Identified exit to Scraptown 7100 | -7/Recycling | Learned Extension trap positions 7144 | -7/Recycling | Scanned before Scraplab entrance 7147 | -7/Recycling | Entered Scraplab 7152 | -7/Recycling | Entered Scraptown 7173 | -7/Scraptown | Visited Cave Peace 7180 | -7/Scraptown | Visited Spacefarers 7196 | -7/Scraptown | Visited UFD Registry 7196 | -7/Scraptown | Registered with UFD as "Gravsplitter" 7201 | -7/Scraptown | Visited Analyses Database 7206 | -7/Scraptown | Visited LU-1G1's Boring Crew 7215 | -7/Scraptown | Visited Scrap Suit Storage 7231 | -7/Scraptown | Visited Abandonware Association 7234 | -7/Scraptown | Learned abandonware demo "SHUTEYE.EXE" 7234 | -7/Scraptown | Learned abandonware demo "TRNCOAT.EXE" 7273 | -7/Scraptown | Visited Scrapoid Pod Storage 7276 | -7/Scraptown | Visited DA-N13 Charitable Foundation 7279 | -7/Scraptown | Found DCF Scrap (31 items) 7283 | -7/Scraptown | Visited Cartography Club 7316 | -7/Scraptown | Visited Science Guys 7325 | -7/Scraptown | Visited Botcube Research 7336 | -7/Scraptown | Visited Modified Component R&D 7367 | -7/Scraptown | Visited Cyclists 7370 | -7/Scraptown | Entered Cyclist Reading Room 7377 | -7/Scraptown | Visited IN-MT5's Study 7507 | -7/Scraptown | Visited Bundlers 7533 | -7/Scraptown | Visited Awakened 7542 | -7/Scraptown | Visited The Evicted 7616 | -7/Scraptown | Learned location of Proximity Caves (-6) 7616 | -7/Scraptown | Learned location of Warlord (-5) 7616 | -7/Scraptown | Learned 12 Factory zone layouts 7616 | -7/Scraptown | Learned 12 Research zone layouts 7616 | -7/Scraptown | Learned 16 Research zone layouts 7616 | -7/Scraptown | Learned 12 Upper Caves zone layouts 7616 | -7/Scraptown | Learned 24 Upper Caves zone layouts 7616 | -7/Scraptown | Learned 16 Proximity Caves zone layouts 7616 | -7/Scraptown | Learned 20 Proximity Caves zone layouts 7616 | -7/Scraptown | Learned 24 Proximity Caves zone layouts 7616 | -7/Scraptown | Learned Storage emergency access door positions 7616 | -7/Scraptown | Learned location of 1 exit from Research 7616 | -7/Scraptown | Learned location of 2 exits from Proximity Caves 8695 | -7/Scraptown | Found Scrap Suit 8785 | -7/Scraptown | Met Optimus 8785 | -7/Scraptown | Accepted into 0bPrime 8891 | -7/Scraptown | Civil war broke out across Scraptown 8977 | -7/Scraptown | Found Lrg. Botcube 8988 | -7/Scraptown | Entered Factory 8988 | -5/Factory | Evolved 4 slots: Propulsion x1, Utility x3 8989 | -5/Factory | Identified exit to Factory 8991 | -5/Factory | Loaded intel: 28 terminal locations 8992 | -5/Factory | Lost 14 allies 9048 | -5/Factory | Loaded intel: 8 recycling unit locations 9141 | -5/Factory | Learned location of Protoforge (-2) 9198 | -5/Factory | Build established: Sprinter 9379 | -5/Factory | Repaired Cld. VTOL Module? 9460 | -5/Factory | Identified exit to Upper Caves 9460 | -5/Factory | Identified exit to Extension 9521 | -5/Factory | Build established: Hacker-Sprinter 9667 | -5/Factory | Discovered exit to Factory (range 16) 9759 | -5/Factory | Discovered exit to Factory (range 5) 9777 | -5/Factory | Learned 4 Testing zone layouts 9823 | -5/Factory | Learned location of Upper Caves (-4) 9889 | -5/Factory | Learned 4 Upper Caves zone layouts 9915 | -5/Factory | Learned Extension garrison access intel 9916 | -5/Factory | Learned Research trap positions 9923 | -5/Factory | Learned location of 2 exits from Factory 9939 | -5/Factory | Learned 12 Research zone layouts 10000 | -5/Factory | Learned Quarantine trap positions 10049 | -5/Factory | Entered Extension 10049 | -5/Extension | Accompanied by 1 ally 10050 | -5/Extension | Loaded intel: 26 trap records 10142 | -5/Extension | Identified exit to Cetus 10144 | -5/Extension | Rescued a captive Derelict 10146 | -5/Extension | Rescued a captive Derelict 10212 | -5/Extension | Energy Cycler disabled 10212 | -5/Extension | Rescued a captive Derelict 10215 | -5/Extension | Rescued a captive Derelict 10215 | -5/Extension | Rescued a captive Derelict 10216 | -5/Extension | Rescued a captive Derelict 10253 | -5/Extension | Lost 6 allies 10322 | -5/Extension | Lost 3 allies 10561 | -5/Extension | Build established: Commander-Sprinter 10622 | -5/Extension | Spotted B-75 Beast 10634 | -5/Extension | Spotted B-75 Beast 10660 | -5/Extension | Destroyed B-75 Beast 10663 | -5/Extension | Discovered exit to Factory (range 15) 10674 | -5/Extension | Disrupted transfer network 10692 | -5/Extension | Lost 5 allies 10711 | -5/Extension | Extracted ID and sensor layout for unrecognized location from A7's data core 10760 | -5/Extension | Repaired Nuclear Pulse Array 10944 | -5/Extension | Discovered exit to Factory (range 10) 11042 | -5/Extension | Lost 4 allies 11047 | -5/Extension | Disrupted transfer network 11058 | -5/Extension | Entered Cetus 11062 | -5/Cetus | Spotted Cetus Guard 11063 | -5/Cetus | Spotted Cetus Guard 11068 | -5/Cetus | Spotted Cetus Guard 11068 | -5/Cetus | Spotted Cetus Guard 11069 | -5/Cetus | Destroyed Cetus Guard 11070 | -5/Cetus | Destroyed Cetus Guard 11070 | -5/Cetus | Destroyed Cetus Guard 11073 | -5/Cetus | Destroyed Cetus Guard 11103 | -5/Cetus | Discovered new exit (range 15) 11106 | -5/Cetus | Identified exit to Archives 11113 | -5/Cetus | Spotted Cetus Guard 11117 | -5/Cetus | Spotted Cetus Guard 11117 | -5/Cetus | Spotted Cetus Guard 11117 | -5/Cetus | Spotted Cetus Guard 11125 | -5/Cetus | Destroyed Cetus Guard 11148 | -5/Cetus | Destroyed Cetus Guard 11148 | -5/Cetus | Destroyed Cetus Guard 11149 | -5/Cetus | Destroyed Cetus Guard 11152 | -5/Cetus | Discovered exit to Factory (range 15) 11154 | -5/Cetus | Met Revision 17 11185 | -5/Cetus | Discovered exit to Factory (range 15) 11224 | -5/Cetus | Build established: Hacker-Sprinter 11230 | -5/Cetus | Entered Archives 11259 | -5/Archives | Unable to access archive contents 11260 | -5/Archives | Discovered exit to Factory (range 13) 11267 | -5/Archives | Discovered new exit (range 15) 11269 | -5/Archives | Identified exit to Hub_04(d) 11269 | -5/Archives | Entered Hub_04(d) 11346 | -5/Hub_04(d) | Disrupted transfer network 11424 | -5/Hub_04(d) | Lost 4 parts (1p3n) 11441 | -5/Hub_04(d) | Network Hub disabled 11448 | -5/Hub_04(d) | Spotted Lightning 11450 | -5/Hub_04(d) | Spotted Lightning 11450 | -5/Hub_04(d) | Spotted Lightning 11450 | -5/Hub_04(d) | Spotted Lightning 11452 | -5/Hub_04(d) | Entered Factory 11452 | -4/Factory | Evolved 2 slots: Power x1, Propulsion x1 11453 | -4/Factory | Identified exit to Research 11454 | -4/Factory | Identified exit to Upper Caves 11454 | -4/Factory | Identified exit to Armory 11724 | -4/Factory | Loaded intel: 8 recycling unit locations 11972 | -4/Factory | Scrapoids reinforcements arrived? 12048 | -4/Factory | Lost 5 allies 12057 | -4/Factory | Lost 4 parts (1n1u2w) 12186 | -4/Factory | Repaired Cld. VTOL Module 12226 | -4/Factory | Loaded intel: 107 trap records 12345 | -4/Factory | Entered Research 12345 | -3/Research | Evolved 2 slots: Utility x2 12346 | -3/Research | Identified exit to Research 12348 | -3/Research | Identified exit to Testing 12349 | -3/Research | Loaded intel: 70 trap records 12351 | -3/Research | Loaded intel: 5 recycling unit locations 12358 | -3/Research | Build established: Hacker-Ninja 12480 | -3/Research | Found Prototype Processor 12480 | -3/Research | Identified Exp. Melee Analysis Suite 12545 | -3/Research | Revision forces began assault on 0b10 12566 | -3/Research | Fabricated Imp. Cesium-ion Thruster (x1) 12650 | -3/Research | Crushed by falling debris 12650 | -3/Research | System corruption reached 10% 12701 | -3/Research | Lost 4 parts (3n1u) 12729 | -3/Research | Met up with Revision 17++ 12749 | -3/Research | Spotted B-86 Titan 12764 | -3/Research | Spotted B-86 Titan 12987 | -3/Research | Build established: Hacker-Scout 13045 | -3/Research | Research terminal network offline 13142 | -3/Research | Found Fusion Bomb Launcher 13174 | -3/Research | Found Gamma Bomb Array 13289 | -3/Research | Found Prototype Processor 13289 | -3/Research | Identified Spectral Analyzer 13312 | -3/Research | Spotted B-86 Titan 13503 | -3/Research | Spotted Striker 13505 | -3/Research | Entered another Research area 13505 | -2/Research | Evolved 2 slots: Utility x2 13511 | -2/Research | Loaded intel: 5 recycling unit locations 13542 | -2/Research | Identified exit to Quarantine 13542 | -2/Research | Identified exit to Access 13638 | -2/Research | Spotted B-90 Cyclops 13698 | -2/Research | Entered Quarantine 13699 | -2/Quarantine | Loaded intel: 11 trap records 13719 | -2/Quarantine | Found Alien Slashing Weapon 13719 | -2/Quarantine | Identified Sigix Broadsword 13724 | -2/Quarantine | Found Alien Artifact 13724 | -2/Quarantine | Identified Core Reset Matrix 13724 | -2/Quarantine | Used Core Reset Matrix 13728 | -2/Quarantine | Detected hypermatrix surge 13728 | -2/Quarantine | Sensed 8 artifacts in vicinity 13745 | -2/Quarantine | Found Subatomic Replicator 13769 | -2/Quarantine | Discovered exit to Access (range 13) 13781 | -2/Quarantine | Found Terrabomb 13787 | -2/Quarantine | Found Terrabomb 13903 | -2/Quarantine | Met incapacitated Sigix Warrior 13903 | -2/Quarantine | Lockdown squad dispatched 13910 | -2/Quarantine | Found Sigix Containment Pod 14008 | -2/Quarantine | Entered Access 14008 | -1/Access | Evolved 2 slots: Utility x2 14098 | -1/Access | Repaired Lrn. Sensor Array 14346 | -1/Access | Identified exit to Command 14412 | -1/Access | Spotted B-99 Colossus 14425 | -1/Access | Build established: Hacker-Ninja 14542 | -1/Access | Crushed by falling debris 14644 | -1/Access | Scraphulk reinforcements arrived 14764 | -1/Access | System corruption reached 10% 14866 | -1/Access | Scraphulk reinforcements arrived? 14896 | -1/Access | Garrison activated, responded to threat 14940 | -1/Access | Lost 5 parts (1p1n2u1w) 14988 | -1/Access | Entered Command 15019 | -1/Command | Phase Generator disabled 15045 | -1/Command | Spotted B-99 Colossus 15050 | -1/Command | Core integrity fell below 50% 15059 | -1/Command | Emitted hypermatrix ping 15064 | -1/Command | Assembled emerged from beneath the floor 15086 | -1/Command | Lost 13 parts (1p5n6u1w) 15090 | -1/Command | Assembled emerged from beneath the floor 15118 | -1/Command | Core integrity fell below 20% 15121 | -1/Command | Assembled emerged from beneath the floor 15150 | -1/Command | Scraphulk reinforcements arrived? 15166 | -1/Command | Lost 9 allies 15182 | -1/Command | Used Subatomic Replicator to replicate Adv. Coolant Injector 15183 | -1/Command | Used Terrabomb 15183 | -1/Command | Destroyed by G-73 Enforcer with Heavy Laser Last Messages --------------- 15169_ VBK9:LM& 15173_ S-43 Plague knocked back. 15174_ Slug penetrates Wall. 15174_ 01C03-K destroyed. 15174_ Slug penetrates Wall. 15175_ Dropped Lgt. Antimatter Reactor. 15181_ ALERT: Suspicious intruders detected, dispatching Cutter reinforcements to area. 15181_ Xenon Bombardment Thruster destroyed. 15181_ Dropped Adv. Coolant Injector. 15182_ Replicated Adv. Coolant Injector. 15183_ Terrabomb activated. Map ----- +----------------------------------------------------+ | ??????????????????????????????# #??# """"" ?? | | ??????????????????????????????# T" #??# """T"" ? | | ??????????????????????????????# "" #??# "" ? | | ??????????????????????????????# #??# | | ?????????????????????????#????# = #??# ! % | | ??????????????????####### #####;#;###### ! | | ????????????????### ; % # ! | | ??????????? ### ; % ########### | | ????????? # ; h "" #?????????# | | ????????# ; ; #?????????# | | ????????# ; ; ##????????# | | ???????## ; ; ;##???????# | | ???????# R;g; ; "" ; ##??????# | | ???????+ Y ; ; ; ; ######## | | ???????# ; ; ; !! ; ??# | | ???????# ; ; ];=!;;;+;;? # | | ????? #; ;; ; !%! ;[; #! ! | | ????? ;; ;; ; ;;;;;+]; ; ; ; | | ???? ;; ;;g; ;] =%!;;; ; ; ? | | ???? ;; ;;g; ; %^*+ ; ; ? | | ???????;; ;; ; ; ^ ;;;;; ;;###?? | | ?????# ?? ;; ; ; %^^ ; ;;;##??? | | ?????#;;; ;;+;;;;;; ; ^ Y ; ; ?? | | ??? ;; ;; ; ; g g;;;;; ; ?? | | ?? ;; ;; ;;;;;;;;;;;;;s;; ; ;== ? | | ???" !;; ;; g @! gg ; ;=! = ? | | ???"" ; ; ;;;;;;;;;;;;;;;;g ; ;=! ? | | ????" R ; ; ;; ;;;;;;;;#???? | | ??? ; H =; ; ;;;;; ; ; =#???? | | ???k ; k ;;;;;;;;;;;;;;; ; ; + #???? | | ????##;;; ;; ; ; ; ; ; #???? | | ???? =; ; ; ; ; ;;;+###### | | ???? ; ; ; ; ;; | | ????? ; ; ; ; ; | | ????? + ; ; # ; ! | | ??????? ; ;;;;;; ; ; | | ?????? # ;;;;;;;+;;;;/; #" | | ??????#?# " "" | | ????????# ;;;;;;;+;; ;; ##"" | | ????????# ; ; ; ; " "" | | ????????# ; ; ; # " #"" | | ????????# ; ; ; # #"T = | | ????????? ;;; ; # ##"" | | ????????# ; ; # ## ####"" | | ????????+ #### ; # # ### ###?#"" | | ??????????????????#######; ########?###???#"" | | ?????????????????????????# #??????????????#" | | ?????????????????????????# #??????????????# | | ?????????????????????????# #??????????????# | | ?????????????????????????# #??????????????##### ## | +----------------------------------------------------+ Best States ------------- Heat Dissipation 136 Coolant Potential 100 Energy Generation 35 Energy Capacity 390 Matter Stores 300 Matter Capacity 300 Sight Range 24 Robot Scan Range 18 Terrain Scan Density 10 ECM Strength 1 Cloak Strength 2 Armor Coverage 225 Phase Shifting 5 Evasion (%) 70 Recoil Reduction 4 Offensive Hacking 46 Defensive Hacking 24 Item Schematics ----------------- Imp. Plasma Cutter | -2/Quarantine | Scanalyzed ECM Suite | -2/Quarantine | Scanalyzed Robot Schematics ------------------ None Fabricated ------------ Imp. Cesium-ion Thruster | x1 | -3/Research Repaired ---------- Seismic Detector | 15% | -10/Materials Imp. EM Pulse Cannon | 28% | -8/Materials Cld. VTOL Module | 66% | -5/Factory Nuclear Pulse Array | 4% | -5/Extension Cld. VTOL Module | 5% | -4/Factory Lrn. Sensor Array | 11% | -1/Access Alien Tech Used ----------------- Sigix Broadsword Core Reset Matrix Subatomic Replicator Terrabomb Achievements -------------- Left-hand Path Speed Demon Supersonic Challenges ------------ None Game ------ Seed WeaponsExperimentalNullifier Manual? 0 Play Time 06:00:30 Cumulative 238.4 hours Start 2025.05.31 @ 22:14:08 End 2025.07.10 @ 21:21:04 Sessions 57 Manual Loads 0 Difficulty Rogue Special Mode None Game No. 132 Rogue 129 Adventurer 3 Explorer 0 Win Type - Total 4 Types 4/0/0/0/0/0/0/0/0/0 Lore% 67 Gallery% 66 Achievement% 57 Wizard Run 0 Options --------- Layout 1 ASCII 0 Keyboard 1 Movement Vi Keybinds 0 Fullscreen 1 Font 28/SmallcapsGlow Map View 50x43 Zoom Use 0% Tactical HUD 1 Map Filters NONE Filters NONE Steam X RUN: c7e2123a-9583-419f-bdde-2a7ab4de0062